Cogmind - Beta 14 @@@ ROGUE MODE // 2025.04.22 @ 14:45:41 Player: Bingus Khan Result: Destroyed by G-47 Trooper with Particle Gun Performance ------------- Evolutions (0) 0 Regions Visited (1) 200 Robots Destroyed (14) 70 Value Destroyed (230) 230 Prototype IDs (0) 0 Alien Tech Used (0) 0 Bonus (0) 0 TOTAL SCORE: 500 Bonus ------- None Cogmind --------- Core Integrity 0/250 Matter 281/300 Energy 99/100 System Corruption 0% Temperature Cool (9) Movement Core (50) Location -10/Materials Parts ------- > --- POWER (1) -------- (None) > --- PROPULSION (2) --- (None) > --- UTILITY (2) ------ (None) > --- WEAPON (2) ------- (None) > --- INVENTORY (5) ---- Improved Aluminum Leg Hover Unit Sensor Array Heavy EM Pulse Gun Assault Rifle Peak State ------------ > --- POWER ------------ Ion Engine > --- PROPULSION ------- Improved Aluminum Leg Improved Aluminum Leg > --- UTILITY ---------- Small Storage Unit Sensor Array > --- WEAPON ----------- Heavy EM Pulse Gun Heavy EM Pulse Gun > --- INVENTORY -------- Light Ion Engine Aluminum Leg Improved Aluminum Leg Improved Aluminum Leg Heat Sink ECM Suite EM Pulse Gun Small Laser [Rating: 12] Favorites ----------- Power Ion Engine Engine Ion Engine Propulsion Aluminum Leg Leg Aluminum Leg Utility Small Storage Unit Device Sensor Array Storage Small Storage Unit Protection Hardened Light Armor Plating Weapon Heavy EM Pulse Gun Energy Gun Heavy EM Pulse Gun Ballistic Gun Light Assault Rifle Build | -11 -10 ------- Run | Yrd Mat Slots Evolved . | . . Power . | . . Propulsion . | . . Utility . | . . Weapon . | . . Parts Attached 18 | 8 10 Power 2 | 1 1 Engine 2 | 1 1 Core . | . . Reactor . | . . Propulsion 5 | 2 3 Treads . | . . Leg 5 | 2 3 Wheel . | . . Hover . | . . Flight . | . . Utility 5 | 3 2 Device 3 | 2 1 Storage 1 | 1 . Processor . | . . Hackware . | . . Protection 1 | . 1 Artifact . | . . Weapon 6 | 2 4 Energy Gun 4 | 1 3 Energy Cannon . | . . Ballistic Gun 2 | 1 1 Ballistic Cannon . | . . Launcher . | . . Special Weapon . | . . Impact Weapon . | . . Slashing Weapon . | . . Piercing Weapon . | . . Special Melee Weapon . | . . Unidentified Prototypes . | . . Parts Lost 1 | . 1 Power . | . . Propulsion . | . . Utility . | . . Weapon 1 | . 1 Highest Loss Streak 1 | . 1 To Critical Strikes . | . . Average Slot Usage (%) 98 | . 98 Engine 13 | . 13 Leg 27 | . 27 Device 13 | . 13 Storage 13 | . 13 Energy Gun 19 | . 19 Ballistic Gun 8 | . 8 Peak Build Rating 12 | 9 12 Average Rating 9 | 6 9 On Entrance 3 | . 7 Naked Turns 3 | . 3 Heaviest Build 17 | 13 17 Greatest Support 26 | 20 26 Greatest Overweight (x) 1 | 1 . Average Overweight (x) . | . . Largest Inventory Capacity 8 | 8 8 Average Capacity 7 | 7 7 Most Carried 8 | 2 8 Average Carried 6 | 1 7 Final Capacity 8 | 8 5 Final Carried 5 | 2 5 Class Distribution -------------------- 100% | Mutant Dominant Class ---------------- Mutant | -10/Materials Resources | -11 -10 ----------- Run | Yrd Mat Matter Collected 409 | 275 134 Remotely . | . . Salvage Created 386 | 59 327 Parts 26 | 8 18 Haulers Intercepted . | . . Recyclers Shooed 2 | 2 . Parts Field Recycled . | . . Retrieved Matter . | . . Parts Self-Destructed . | . . Prevented . | . . Kills | -11 -10 ------- Run | Yrd Mat Combat Hostiles Destroyed 6 | . 6 Guns 6 | . 6 Classes Destroyed 6 | 1 5 Worker 2 | . 2 Tunneler 3 | 3 . Recycler 1 | . 1 Watcher 2 | . 2 Swarmer 2 | . 2 Grunt 4 | . 4 Best Kill Streak 4 | 1 4 Combat Bots Only 2 | . 2 Max Kills in Single Turn 1 | 1 1 Gunslinging . | . . Exploded . | . . Melee . | . . Uniques/NPCs Destroyed . | . . Combat | -11 -10 -------- Run | Yrd Mat Hostile Shots Fired 132 | . 132 Missed 35 | . 35 Damage Taken 948 | . 948 Core 251 | . 251 Absorbed by Shields . | . . Regen/Repaired (Parts) 21 | . 21 Core Remaining (%) 100 | 100 . Volleys Fired 55 | 14 41 Largest 2 | 2 2 Hottest 90 | 60 90 Shots Fired 101 | 25 76 Gun 101 | 25 76 Cannon . | . . Launcher . | . . Special . | . . Kinetic 52 | 14 38 Thermal 38 | 11 27 Explosive . | . . Electromagnetic 11 | . 11 Robot Hit Streak 8 | 7 8 Robot Miss Streak 5 | 3 5 Penetration Max . | . . Secondary Targets 3 | . 3 Max Gunslinging Chain 1 | . 1 Shots Hit Robots 51 | 15 36 Core Hits 21 | 5 16 Critical Kills . | . . Critical Parts Destroyed 1 | 1 . Critical Strikes 2 | 1 1 Burn 1 | . 1 Destroy 1 | 1 . Melee Attacks . | . . Impact . | . . Slashing . | . . Piercing . | . . Sneak Attacks . | . . Combat Hostiles . | . . Follow-up Attacks . | . . Damage Inflicted 654 | 141 513 Guns 650 | 139 511 Cannons . | . . Explosions . | . . Melee . | . . Ramming 4 | 2 2 Kinetic 239 | 61 178 Thermal 300 | 78 222 Explosive . | . . Electromagnetic 111 | . 111 Impact . | . . Slashing . | . . Piercing . | . . Highest Corruption . | . . Average Corruption . | . . Corruption Purged . | . . Corruption Blocked . | . . Overload Shots . | . . Overflow Damage . | . . Projectiles . | . . Explosions . | . . Melee . | . . Knockbacks . | . . Impact . | . . Kinetic . | . . Secondary . | . . Self-Inflicted Damage . | . . Shots . | . . Rammed . | . . Targets Rammed 3 | 1 2 Kicked 3 | 1 2 Crushed . | . . Highest Temperature 334 | 20 334 Average Temperature 95 | 15 107 Received Heat Transfer 321 | . 321 Siege Activations . | . . Robots Corrupted . | . . Combat Hostiles . | . . Parts Fried 1 | . 1 Impact Corruptions . | . . Robots Melted . | . . Combat Hostiles . | . . Parts Melted . | . . Heat Transferred 793 | 175 618 Parts Sabotaged . | . . Parts Stolen . | . . Parts Stripped . | . . Power Chain Reactions . | . . Alert | -11 -10 ------- Run | Yrd Mat Peak Influence 174 | 15 174 Initial 9 | . 9 Average 47 | 6 53 Maximum Alert Level . | . . Low Security (%) 100 | 100 100 Level 1 . | . . Level 2 . | . . Level 3 . | . . Level 4 . | . . Level 5 . | . . High Security . | . . Max Security . | . . Squads Dispatched 2 | . 2 Investigation 2 | . 2 Extermination . | . . Reinforcement . | . . Assault . | . . Garrison . | . . Intercept . | . . Searches Triggered . | . . Construction Impeded . | . . Haulers Reinforced . | . . Active Scanning Responses . | . . Cargo Convoy Interrupts . | . . Stealth | -11 -10 --------- Run | Yrd Mat Distress Signals 1 | . 1 Communications Jammed . | . . Distress Signals . | . . Times Spotted 18 | . 18 Peak Tracking Total 7 | . 7 Tactical Retreats . | . . Traps | -11 -10 ------- Run | Yrd Mat Traps Triggered . | . . Indirectly . | . . Trap Hack Attempts . | . . Triggered . | . . Disarmed . | . . Reprogrammed . | . . Reused . | . . Traps Extracted . | . . Installed . | . . Triggered . | . . Machines | -11 -10 ---------- Run | Yrd Mat Machines Disabled . | . . Max in Single Turn . | . . Machines Repaired . | . . Machines Dismantled . | . . Machines Sabotaged . | . . Overloaded Fab Kills . | . . Hacking | -11 -10 --------- Run | Yrd Mat Machines Accessed 8 | . 8 Terminals 5 | . 5 Fabricators . | . . Repair Stations 1 | . 1 Recycling Units 2 | . 2 Scanalyzers . | . . Garrison Access . | . . Total Hacks 26 | . 26 Successful 14 | . 14 Failed 12 | . 12 Catastrophic 5 | . 5 Database Lockouts . | . . Manual 16 | . 16 Terminals 18 | . 18 Fabricators . | . . Repair Stations 2 | . 2 Recycling Units 6 | . 6 Scanalyzers . | . . Garrison Access . | . . Terminal Hacks 4 | . 4 Record 2 | . 2 Locate Traps 1 | . 1 Zone Layout 1 | . 1 Fabricator Hacks . | . . Repair Station Hacks 2 | . 2 Scan Component 1 | . 1 Repair 1 | . 1 Recycling Unit Hacks 3 | . 3 Report Inventory 2 | . 2 Retrieve Components 1 | . 1 Scanalyzer . | . . Garrison Access Hacks . | . . Unauthorized Hacks 5 | . 5 Terminals 5 | . 5 Assimilate 1 | . 1 Botnet 4 | . 4 Fabricators . | . . Repair Stations . | . . Recycling Units . | . . Scanalyzers . | . . Garrison Access . | . . Data Cores Recovered . | . . Used . | . . Hacking Detections 7 | . 7 Full Trace Events 6 | . 6 Feedback Events . | . . Feedback Blocked . | . . Robot Schematics Acquired . | . . Robots Built . | . . Authchips . | . . Time . | . . Total Robot Build Rating . | . . Part Schematics Acquired . | . . Parts Built . | . . Authchips . | . . Time . | . . Total Part Build Rating . | . . Parts Repaired 1 | . 1 Time 26 | . 26 Parts Recycled . | . . Recycled Matter . | . . Retrieved Matter . | . . Retrieved Components 6 | . 6 Parts Scanalyzed . | . . Part Schematics Acquired . | . . Parts Damaged . | . . Bothacking | -11 -10 ------------ Run | Yrd Mat Used RIF Installer . | . . Robots Hacked . | . . Non-combat . | . . Combat . | . . Robot Hacks Applied . | . . Relay Couplers Released . | . . Fabnet Peak Effective % . | . . Robots Rewired . | . . Allies Hacked . | . . Hacks Repelled . | . . Allies | -11 -10 -------- Run | Yrd Mat Total Allies . | . . Largest Group . | . . Highest-Rated Group . | . . Highest-Rated Ally . | . . Total Orders . | . . Ally Attacks . | . . Total Damage . | . . Kills . | . . Allies Corrupted . | . . Allies Melted . | . . Intel | -11 -10 ------- Run | Yrd Mat Robot Analysis Total . | . . Derelict Logs Recovered . | . . Drone Launches . | . . Drone Recoveries . | . . Exploration | -11 -10 ------------- Run | Yrd Mat Turns Passed 880 | 117 763 Spaces Moved 499 | 48 451 Core 7 | 1 6 Treads . | . . Legs 492 | 47 445 Wheels . | . . Hover . | . . Flight . | . . Fastest Speed 50 | 50 50 Average Speed 119 | 125 119 Slowest Speed 190 | 190 120 Overloaded Moves . | . . Propulsion Burnouts . | . . Robots Hopped . | . . Cave-ins Triggered . | . . Exploration Rate (%) 36 | 4 69 Regions Visited 1 Branch Regions . Pre-discovered Areas . | . . Known Exits Taken . | . . Unknown Exits Taken 1 | 1 . Scrap Searched . | . . Spaces Dug . | . . Terrain Destroyed . | . . Melee . | . . Projectile . | . . AOE . | . . Terrain Rammed . | . . Walls Destroyed . | . . Machines Disabled . | . . Actions | -11 -10 --------- Run | Yrd Mat Total 686 | 78 608 Wait 88 | 6 82 Move 498 | 47 451 Hop . | . . Pick Up 14 | 2 12 Fast Attach 8 | 7 1 Attach . | . . Detach . | . . Swap 10 | 1 9 Drop 10 | . 10 Fire 55 | 14 41 Melee . | . . Ram . | . . Kick 3 | 1 2 Crush . | . . Escape Stasis . | . . Rewire . | . . Trap . | . . Miscellaneous . | . . Route ------- -11/Scrapyard -10/Materials (discovered 1 exit: [*Mat]) History --------- Turn | Location | Event 32 | -11/Scrapyard | Discovered new exit (range 16) 118 | -11/Scrapyard | Entered Materials 318 | -10/Materials | Build established: Mutant 831 | -10/Materials | Repaired Ion Engine 835 | -10/Materials | Core integrity fell below 50% 868 | -10/Materials | Discovered new exit (range 16) 878 | -10/Materials | Released all parts (6) 880 | -10/Materials | Core integrity fell below 20% 881 | -10/Materials | Destroyed by G-47 Trooper with Particle Gun Last Messages --------------- 00859_ K-01 Serf collects debris. 00859_ R-06 Scavenger collects Lgt. Assault Rifle. 00862_ K-01 Serf collects debris. 00864_ R-06 Scavenger collects Corrupted Com. Wheel. 00866_ K-01 Serf collects debris. 00866_ Dropped Heat Sink. 00866_ Acquired Hover Unit. 00867_ K-01 Serf collects debris. 00868_ EXIT=FOUND 00869_ K-01 Serf cleans the Repair Station. 00873_ Hvy. EM Pulse Gun destroyed. 00875_ K-01 Serf collects debris. 00878_ Released Hrd. Light Armor Plating. 00878_ Released Ion Engine. 00878_ Released Imp. Aluminum Leg. 00878_ Released Sml. Storage Unit. 00878_ Released Imp. Aluminum Leg. 00878_ Released Assault Rifle. Map ----- +----------------------------------------------------+ | ## "" ^^ #????????????# ???? | | # #????????????# ??? | | ## ####### # *[*"""#????????????# ??? | | #?????####### !%% R"#????????????#+## ??? | | = #??????????#T =^ """#???????????????? ???? | | #??????????## #???????????????? ???? | | #???????????# #???????????????? ???? | | = #???????????# """" #?????????????????????? | | #???????????# """" ##????????????????????? | | ## #???????????# """" ###### ??????????? | | #???????????# *% / ???????????? | | #?# ?????# ! ss ######???????????????? | | ## #?# ?????# ^ w#????????????????????? | | ## #?# ?????# #????????????????????? | | # ### ?????# #????????????????????? | | # #T#####+##### |% #????????????????????? | | # |% s #????????????????????? | | # #????????????????????? | | #""!! """ !!*#????????????????????? | | ##"Y = """ ###########=!*+????????????????????? | | ##""=!] """ #?????????#==[#^???????????????????? | | #?????????# #????????????????????? | | +?????????# #????????????????????? | | #######+## #?????????# #????????????????????? | | ###### ## ##?????????# #????????????????????? | | ## ## #??????????#@ #????????????????????? | | ## ## #??????????# gg/ """ ???????????????? | | """ ## + ?#??????????# # """ ???????????????? | | """ ## ## ????????????# < # ??????????????? | | """ ## ###????????????# #?#####??????????????? | | ## #??????????????#####????????????????????? | | ######???????????????????????????????????????? | | #????????????????????????????????????????????? | | #####????????????????????????????????????????????? | | ?????????????????????????????????????????????????? | | | | | | | | | | | | | | | | | | | | | | | | | | | | | | | +----------------------------------------------------+ Best States ------------- Heat Dissipation 25 Energy Generation 10 Energy Capacity 250 Matter Stores 300 Matter Capacity 300 Sight Range 16 Robot Scan Range 14 Terrain Scan Range 16 Terrain Scan Density 10 Evasion (%) 55 Item Schematics ----------------- None Robot Schematics ------------------ None Fabricated ------------ Nothing Alien Tech Used ----------------- None Achievements -------------- Quantum Hacking Challenges ------------ None Game ------ Seed FactoryElectrostormMinigun Manual? 0 Play Time 00:14:36 Cumulative 13.2 hours Start 2025.04.22 @ 14:23:15 End 2025.04.22 @ 14:45:41 Sessions 1 Manual Loads 0 Difficulty Rogue Special Mode None Game No. 34 Rogue 21 Adventurer 13 Explorer 0 Win Type - Total 0 Types 0/0/0/0/0/0/0/0/0 Lore% 5 Gallery% 19 Achievement% 17 Wizard Run 0 Options --------- Layout 1 ASCII 0 Keyboard 1 Movement Numpad Keybinds 0 Fullscreen 1 Font 32/SmallcapsGlow Map View 50x35 Zoom Use 0% Tactical HUD 1 Map Filters NONE Filters NONE Steam 1 RUN: 2d5ee7bf-3cac-4b57-989d-db0b7c40a8bf